fUSD/lending_fUSD_20250417
["ID","MTS","AMOUNT","RATE_DAILY","PERIOD"]
[358225247,1744858244279,-500.0,0.00052054,120]
[358225248,1744858244289,-1161.23,0.00052054,120]
[358225249,1744858244298,-500.0,0.00052054,120]
[358225250,1744858244308,-500.0,0.00052054,120]
[358225251,1744858244316,-500.0,0.00052054,120]
[358225252,1744858244325,-500.0,0.00052054,120]
[358225253,1744858244335,-2071.3,0.00052054,120]
[358225254,1744858244344,-500.0,0.00052054,120]
[358225255,1744858244353,-500.0,0.00052054,120]
[358225256,1744858244362,-500.0,0.00052054,120]
[358225257,1744858244370,-1412.98,0.00052054,120]
[358225258,1744858244379,-500.0,0.00052054,120]
[358225259,1744858244388,-500.0,0.00052054,120]
[358225260,1744858244397,-500.0,0.00052054,120]
[358225261,1744858244406,-500.0,0.00052054,120]
[358225262,1744858244415,-500.0,0.00052054,120]
[358225263,1744858244427,-1166.11,0.00052054,120]
[358225264,1744858244436,-1297.72,0.00052054,120]
[358225265,1744858244445,-500.0,0.00052054,120]
[358225266,1744858244453,-500.0,0.00052054,120]
[358225267,1744858244464,-500.0,0.00052054,120]
[358225268,1744858244473,-500.0,0.00052054,120]
[358225269,1744858244482,-500.0,0.00052054,120]
[358225270,1744858244491,-500.0,0.00052054,120]
[358225271,1744858244502,-500.0,0.00052054,120]
[358225272,1744858244511,-500.0,0.00052054,120]
[358225273,1744858244521,-500.0,0.00052054,120]
[358225274,1744858244530,-1029.43,0.00052054,120]
[358225275,1744858244539,-500.0,0.00052054,120]
[358225276,1744858244548,-1353.84,0.00052054,120]
[358225277,1744858244557,-998.22,0.00052054,120]
[358225278,1744858244567,-500.0,0.00052054,120]
[358225279,1744858244576,-500.0,0.00052054,120]
[358225280,1744858244585,-520.87942937,0.00052054,120]
[358225281,1744858244594,-504.02,0.00052054,120]
[358225282,1744858244604,-1311.04,0.00052054,120]
[358225283,1744858244614,-500.0,0.00052054,120]
[358225284,1744858244623,-500.0,0.00052054,120]
[358225285,1744858244633,-500.0,0.00052054,120]
[358225286,1744858244643,-1467.25,0.00052054,120]
[358225287,1744858244809,-500.0,0.00052054,120]
[358225288,1744858244819,-258.56675348,0.00052054,120]
[358225289,1744858244828,-589.46677087,0.00052054,120]
[358225290,1744858244838,-500.0,0.00052054,120]
[358225291,1744858244848,-500.0,0.00052054,120]
[358225292,1744858244857,-500.0,0.00052054,120]
[358225293,1744858244866,-1217.53,0.00052054,120]
[358225294,1744858244875,-500.0,0.00052054,120]
[358225295,1744858244884,-647.24,0.00052054,120]
[358225296,1744858244894,-733.63,0.00052054,120]
[358225297,1744858244903,-500.0,0.00052054,120]
[358225298,1744858244912,-500.0,0.00052054,120]
[358225299,1744858244921,-549.1668732,0.00052054,120]
[358225300,1744858244931,-500.0,0.00052054,120]
[358225301,1744858244940,-500.0,0.00052054,120]
[358225302,1744858244949,-375.33509703,0.00052054,120]
[358225303,1744858244959,-1326.05,0.00052054,35]
[358225304,1744858244968,-2113.15,0.00052054,120]
[358225305,1744858244978,-500.0,0.00052054,120]
[358225306,1744858244987,-532.57091217,0.00052054,120]
[358225307,1744858244996,-511.16149786,0.00052054,120]
[358225308,1744858245005,-626.26,0.00052054,120]
[358225309,1744858245014,-500.0,0.00052054,120]
[358225310,1744858245023,-967.49,0.00052054,120]
[358225311,1744858245033,-500.0,0.00052054,120]
[358225312,1744858245042,-500.0,0.00052054,120]
[358225313,1744858245051,-500.0,0.00052054,120]
[358225314,1744858245061,-500.0,0.00052054,120]
[358225315,1744858245071,-500.0,0.00052054,120]
[358225316,1744858245080,-1460.72,0.00052054,120]
[358225317,1744858245091,-500.0,0.00052054,120]
[358225318,1744858245101,-620.57,0.00052054,120]
[358225319,1744858245111,-500.0,0.00052054,120]
[358225320,1744858245121,-500.0,0.00052054,120]
[358225321,1744858245130,-500.0,0.00052054,120]
[358225322,1744858245139,-692.08,0.00052054,120]
[358225323,1744858245149,-940.79,0.00052054,120]
[358225324,1744858245158,-653.46,0.00052054,120]
[358225325,1744858245168,-500.0,0.00052054,120]
[358225326,1744858245177,-500.0,0.00052054,120]
[358225327,1744858245187,-769.41,0.00052054,120]
[358225328,1744858245196,-500.0,0.00052054,120]
[358225330,1744858245206,-546.01562157,0.00052054,120]
[358225331,1744858245215,-963.83,0.00052054,120]
[358225332,1744858245224,-1338.87,0.00052054,120]
[358225333,1744858245234,-500.0,0.00052054,120]
[358225334,1744858245243,-500.0,0.00052054,120]
[358225335,1744858245252,-500.0,0.00052054,120]
[358225336,1744858245261,-500.0,0.00052054,120]
[358225337,1744858245271,-524.99946831,0.00052054,120]
[358225338,1744858245280,-500.0,0.00052054,120]
[358225339,1744858245289,-587.69,0.00052054,120]
[358225340,1744858245298,-500.0,0.00052054,120]
[358225341,1744858245308,-500.0,0.00052054,120]
[358225342,1744858245318,-225.77412016,0.00052054,30]
[358225343,1744858245327,-1212.34,0.00052054,120]
[358225344,1744858245336,-500.0,0.00052054,120]
[358225345,1744858245346,-809.54,0.00052054,120]
[358225346,1744858245357,-585.77,0.00052054,120]
[358225347,1744858245367,-772.46,0.00052054,120]
[358225348,1744858245376,-557.68,0.00052054,120]
[358225349,1744858245387,-503.34126338,0.00052054,120]
[358225350,1744858245397,-490.0,0.00052054,120]
[358225351,1744858245407,-2037.67,0.00052054,120]
[358225352,1744858245417,-707.4,0.00052054,120]
[358225353,1744858245428,-500.0,0.00052054,120]
[358225354,1744858245437,-647.81,0.00052054,120]
[358225355,1744858245447,-1000.0,0.00052054,120]
[358225356,1744858245456,-500.0,0.00052054,120]
[358225357,1744858245466,-1790.67,0.00052054,120]
[358225358,1744858245476,-500.0,0.00052054,120]
[358225359,1744858245485,-500.0,0.00052054,120]
[358225360,1744858245495,-500.0,0.00052054,120]
[358225361,1744858245506,-500.0,0.00052054,120]
[358225362,1744858245515,-666.48,0.00052054,120]
[358225363,1744858245525,-500.0,0.00052054,120]
[358225364,1744858245535,-1576.81,0.00052054,120]
[358225365,1744858245544,-522.31692435,0.00052054,120]
[358225366,1744858245554,-500.0,0.00052054,120]
[358225367,1744858245563,-1734.03,0.00052054,120]
[358225368,1744858245574,-731.71,0.00052054,120]
[358225369,1744858245584,-500.0,0.00052054,120]
[358225370,1744858245593,-500.0,0.00052054,120]
[358225371,1744858245603,-500.0,0.00052054,120]
[358225372,1744858245612,-1170.13,0.00052054,120]
[358225373,1744858245623,-500.0,0.00052054,120]
[358225374,1744858245632,-1165.93,0.00052054,120]
[358225375,1744858245641,-500.0,0.00052054,120]
[358225376,1744858245652,-500.0,0.00052054,120]
[358225377,1744858245662,-500.0,0.00052054,120]
[358225378,1744858245671,-529.0735197,0.00052054,120]
[358225379,1744858245681,-500.0,0.00052054,120]
[358225380,1744858245691,-500.0,0.00052054,120]
[358225381,1744858245701,-1438.67,0.00052054,120]
[358225382,1744858245711,-500.0,0.00052054,120]
[358225383,1744858245721,-500.0,0.00052054,120]
[358225384,1744858245730,-500.0,0.00052054,30]
[358225385,1744858245740,-500.0,0.00052054,120]
[358225387,1744858245749,-500.0,0.00052054,120]
[358225389,1744858245759,-1498.5,0.00052054,120]
[358225391,1744858245769,-500.0,0.00052054,120]
[358225393,1744858245778,-500.0,0.00052054,120]
[358225395,1744858245788,-700.39,0.00052054,120]
[358225397,1744858245797,-521.34074495,0.00052054,120]
[358225399,1744858245807,-518.87442801,0.00052054,120]
[358225401,1744858245817,-886.03,0.00052054,120]
[358225403,1744858245827,-500.0,0.00052054,120]
[358225405,1744858245836,-1279.89,0.00052054,120]
[358225407,1744858245846,-500.0,0.00052054,120]
[358225409,1744858245856,-500.0,0.00052054,120]
[358225411,1744858245866,-500.0,0.00052054,120]
[358225413,1744858245875,-507.11968974,0.00052054,120]
[358225415,1744858245885,-1542.02,0.00052054,120]
[358225417,1744858245895,-500.0,0.00052054,120]
[358225419,1744858245904,-689.86,0.00052054,120]
[358225421,1744858245914,-150.5574019,0.00052054,120]
[358225423,1744858245924,-500.0,0.00052054,120]
[358225425,1744858245933,-500.0,0.00052054,120]
[358225427,1744858245943,-1138.28,0.00052054,120]
[358225429,1744858245952,-576.91,0.00052054,120]
[358225431,1744858245962,-500.0,0.00052054,120]
[358225433,1744858245971,-500.0,0.00052054,120]
[358225435,1744858245980,-529.92,0.00052054,120]
[358225437,1744858245990,-2907.8,0.00052054,120]
[358225439,1744858245999,-500.0,0.00052054,120]
[358225441,1744858246009,-1641.83,0.00052054,120]
[358225443,1744858246018,-500.0,0.00052054,120]
[358225445,1744858246029,-500.0,0.00052054,120]
[358225447,1744858246039,-500.0,0.00052054,120]
[358225449,1744858246048,-500.0,0.00052054,120]
[358225451,1744858246060,-500.0,0.00052054,120]
[358225453,1744858246069,-175.52845574,0.00052054,120]
[358225455,1744858246079,-2284.4,0.00052054,120]
[358225457,1744858246089,-500.0,0.00052054,120]
[358225459,1744858246099,-500.0,0.00052054,120]
[358225461,1744858246108,-2376.49,0.00052054,120]
[358225463,1744858246117,-500.0,0.00052054,120]
[358225465,1744858246126,-1704.88,0.00052054,120]
[358225467,1744858246136,-2312.15,0.00052054,120]
[358225469,1744858246145,-500.0,0.00052054,120]
[358225471,1744858246154,-500.0,0.00052054,120]
[358225473,1744858246164,-668.17,0.00052054,30]
[358225475,1744858246173,-1037.71,0.00052054,120]
[358225477,1744858246183,-500.0,0.00052054,120]
[358225479,1744858246193,-500.0,0.00052054,120]
[358225481,1744858246202,-1034.98,0.00052054,120]
[358225483,1744858246212,-2316.02,0.00052054,120]
[358225485,1744858246222,-500.0,0.00052054,120]
[358225487,1744858246232,-500.0,0.00052054,120]
[358225489,1744858246241,-778.98,0.00052054,120]
[358225491,1744858246251,-1411.35,0.00052054,120]
[358225493,1744858246261,-889.43,0.00052054,120]
[358225495,1744858246270,-530.7226731,0.00052054,120]
[358225497,1744858246280,-500.0,0.00052054,120]
[358225499,1744858246290,-522.87314095,0.00052054,120]
[358225501,1744858246299,-637.61,0.00052054,120]
[358225503,1744858246308,-500.0,0.00052054,120]
[358225505,1744858246318,-500.0,0.00052054,120]
[358225507,1744858246327,-2386.32,0.00052054,120]
[358225509,1744858246338,-1171.1,0.00052054,120]
[358225511,1744858246347,-500.0,0.00052054,120]
[358225513,1744858246357,-500.0,0.00052054,120]
[358225515,1744858246366,-500.0,0.00052054,120]
[358225517,1744858246376,-772.84,0.00052054,120]
[358225519,1744858246386,-500.0,0.00052054,120]
[358225521,1744858246395,-1897.66,0.00052054,120]
[358225523,1744858246404,-500.0,0.00052054,120]
[358225525,1744858246414,-500.0,0.00052054,120]
[358225527,1744858246426,-500.00868536,0.00052054,120]
[358225529,1744858246435,-500.0,0.00052054,120]
[358225531,1744858246444,-500.0,0.00052054,120]
[358225533,1744858246454,-523.45,0.00052054,120]
[358225535,1744858246465,-500.0,0.00052054,120]
[358225537,1744858246474,-500.0,0.00052054,120]
[358225539,1744858246484,-500.0,0.00052054,120]
[358225541,1744858246495,-500.0,0.00052054,120]
[358225543,1744858246505,-500.0,0.00052054,120]
[358225550,1744858246564,-596.21,0.00052054,120]
[358225552,1744858246574,-877.41,0.00052054,120]
[358225554,1744858246584,-500.0,0.00052054,120]
[358225556,1744858246594,-500.0,0.00052054,120]
[358225558,1744858246605,-500.0,0.00052054,120]
[358225560,1744858246615,-507.47215607,0.00052054,120]
[358225562,1744858246624,-568.78697449,0.00052054,120]
[358225564,1744858246633,-620.7,0.00052054,30]
[358225566,1744858246642,-500.0,0.00052054,120]
[358225568,1744858246651,-601.18,0.00052054,120]
[358225570,1744858246661,-500.0,0.00052054,120]
[358225572,1744858246670,-592.95571124,0.00052054,120]
[358225574,1744858246679,-1484.94,0.00052054,120]
[358225576,1744858246688,-500.0,0.00052054,120]
[358225578,1744858246697,-500.0,0.00052054,120]
[358225580,1744858246706,-500.0,0.00052054,120]
[358225582,1744858246716,-500.0,0.00052054,120]
[358225584,1744858246725,-500.0,0.00052054,120]
[358225586,1744858246734,-211.20410282,0.00052054,120]
[358225588,1744858246743,-179.52905327,0.00052054,120]
[358225590,1744858246753,-500.0,0.00052054,120]
[358225592,1744858246762,-500.0,0.00052054,120]
[358225594,1744858246772,-500.0,0.00052054,120]
[358225596,1744858246781,-156.98708,0.00052054,120]
[358225598,1744858246790,-844.65,0.00052054,120]
[358225600,1744858246799,-500.0,0.00052054,120]
[358225602,1744858246808,-151.0,0.00052054,120]
[358225604,1744858246818,-500.0,0.00052054,120]
[358225606,1744858246827,-500.0,0.00052054,120]
[358225608,1744858246836,-917.94,0.00052054,120]
[358225610,1744858246845,-500.0,0.00052054,120]
[358225612,1744858246855,-500.0,0.00052054,120]
[358225614,1744858246864,-830.52,0.00052054,120]
[358225616,1744858246873,-2177.77,0.00052054,120]
[358225618,1744858246882,-500.0,0.00052054,120]
[358225620,1744858246891,-924.06,0.00052054,120]
[358225622,1744858246900,-500.0,0.00052054,120]
[358225624,1744858246909,-500.0,0.00052054,120]
[358225626,1744858246918,-151.0,0.00052054,120]
[358225628,1744858246928,-500.0,0.00052054,120]
[358225630,1744858246937,-508.79,0.00052054,120]
[358225632,1744858246946,-500.0,0.00052054,120]
[358225634,1744858246955,-500.0,0.00052054,120]
[358225636,1744858246964,-500.0,0.00052054,120]
[358225638,1744858246974,-415.2591759,0.00052054,120]
[358225640,1744858246983,-500.0,0.00052054,120]
[358225642,1744858246993,-500.0,0.00052054,120]
[358225644,1744858247003,-500.0,0.00052054,120]
[358225646,1744858247012,-500.0,0.00052054,120]
[358225648,1744858247021,-500.0,0.00052054,120]
[358225650,1744858247030,-500.0,0.00052054,120]
[358225652,1744858247040,-500.0,0.00052054,120]
[358225654,1744858247049,-500.0,0.00052054,120]
[358225656,1744858247059,-500.0,0.00052054,120]
[358225658,1744858247071,-500.0,0.00052054,120]
[358225660,1744858247080,-2352.51,0.00052054,120]
[358225662,1744858247090,-652.67,0.00052054,120]
[358225664,1744858247099,-500.0,0.00052054,120]
[358225666,1744858247109,-500.0,0.00052054,120]
[358225668,1744858247118,-500.0,0.00052054,120]
[358225670,1744858247128,-151.0,0.00052054,120]
[358225672,1744858247137,-592.18,0.00052054,120]
[358225674,1744858247146,-151.0,0.00052054,120]
[358225676,1744858247155,-500.0,0.00052054,120]
[358225678,1744858247165,-758.19,0.00052054,120]
[358225680,1744858247175,-381.48867766,0.00052054,120]
[358225682,1744858247184,-500.0,0.00052054,120]
[358225684,1744858247194,-500.0,0.00052054,120]
[358225686,1744858247203,-500.0,0.00052054,120]
[358225688,1744858247212,-621.27,0.00052054,120]
[358225690,1744858247222,-500.0,0.00052054,120]
[358225692,1744858247231,-1555.32,0.00052054,120]
[358225694,1744858247240,-1738.08,0.00052054,120]
[358225696,1744858247249,-593.62,0.00052054,120]
[358225698,1744858247258,-690.04,0.00052054,120]
[358225700,1744858247267,-500.0,0.00052054,120]
[358225702,1744858247276,-1375.95,0.00052054,120]
[358225704,1744858247286,-500.0,0.00052054,120]
[358225706,1744858247295,-500.0,0.00052054,120]
[358225708,1744858247305,-677.16,0.00052054,120]
[358225710,1744858247314,-500.0,0.00052054,120]
[358225712,1744858247323,-1551.55,0.00052054,120]
[358225714,1744858247333,-1893.07,0.00052054,120]
[358225716,1744858247342,-500.0,0.00052054,120]
[358225718,1744858247351,-500.0,0.00052054,120]
[358225720,1744858247360,-500.0,0.00052054,120]
[358225722,1744858247369,-671.74,0.00052054,120]
[358225724,1744858247378,-500.0,0.00052054,120]
[358225726,1744858247387,-273.81181213,0.00052054,120]
[358225728,1744858247397,-500.0,0.00052054,120]
[358225730,1744858247406,-500.0,0.00052054,120]
[358225732,1744858247416,-500.0,0.00052054,120]
[358225734,1744858247428,-500.0,0.00052054,120]
[358225736,1744858247437,-500.0,0.00052054,120]
[358225738,1744858247447,-500.0,0.00052054,120]
[358225740,1744858247456,-838.84,0.00052054,120]
[358225742,1744858247466,-325.28318062,0.00052054,120]
[358225744,1744858247475,-500.0,0.00052054,120]
[358225746,1744858247485,-500.0,0.00052054,120]
[358225748,1744858247494,-816.74,0.00052054,120]
[358225750,1744858247505,-500.0,0.00052054,120]
[358225752,1744858247514,-500.0,0.00052054,120]
[358225754,1744858247524,-151.0,0.00052054,120]
[358225756,1744858247533,-500.0,0.00052054,120]
[358225758,1744858247542,-2029.77,0.00052054,120]
[358225760,1744858247552,-500.0,0.00052054,120]
[358225762,1744858247561,-151.0,0.00052054,120]
[358225764,1744858247570,-512.66422861,0.00052054,120]
[358225766,1744858247579,-500.0,0.00052054,120]
[358225768,1744858247588,-634.18,0.00052054,120]
[358225770,1744858247597,-500.0,0.00052054,120]
[358225772,1744858247607,-1739.39,0.00052054,120]
[358225774,1744858247616,-500.0,0.00052054,120]
[358225776,1744858247626,-600.59227071,0.00052054,120]
[358225778,1744858247635,-500.0,0.00052054,120]
[358225780,1744858247644,-523.75879236,0.00052054,120]
[358225782,1744858247653,-500.0,0.00052054,120]
[358225784,1744858247662,-500.0,0.00052054,120]
[358225785,1744858247672,-518.9969764,0.00052054,120]
[358225788,1744858247683,-565.11798232,0.00052054,120]
[358225790,1744858247692,-500.0,0.00052054,120]
[358225792,1744858247703,-1304.17,0.00052054,120]
[358225794,1744858247713,-500.0,0.00052054,120]
[358225796,1744858247723,-500.0,0.00052054,120]
[358225798,1744858247732,-882.07,0.00052054,120]
[358225800,1744858247742,-500.0,0.00052054,120]
[358225802,1744858247751,-500.0,0.00052054,120]
[358225804,1744858247764,-195.919403,0.00052054,120]
[358225805,1744858247776,-151.0,0.00052054,120]
[358225808,1744858247786,-500.0,0.00052054,120]
[358225810,1744858247796,-500.0,0.00052054,120]
[358225812,1744858247806,-151.0,0.00052054,120]
[358225814,1744858247816,-502.55726968,0.00052054,120]
[358225816,1744858247826,-151.0,0.00052054,120]
[358225818,1744858247836,-500.0,0.00052054,120]
[358225820,1744858247846,-500.0,0.00052054,120]
[358225822,1744858247855,-500.0,0.00052054,120]
[358225824,1744858247865,-500.0,0.00052054,120]
[358225826,1744858247876,-500.0,0.00052054,120]
[358225828,1744858247886,-500.0,0.00052054,120]
[358225830,1744858247896,-500.0,0.00052054,120]
[358225832,1744858247905,-500.0,0.00052054,120]
[358225834,1744858247915,-500.0,0.00052054,120]
[358225836,1744858247924,-152.827108,0.00052054,120]
[358225838,1744858247934,-500.0,0.00052054,120]
[358225840,1744858247944,-500.0,0.00052054,120]
[358225842,1744858247953,-500.0,0.00052054,120]
[358225844,1744858247963,-500.0,0.00052054,120]
[358225846,1744858247973,-500.0,0.00052054,120]
[358225848,1744858247982,-151.822607,0.00052054,120]
[358225850,1744858247991,-500.0,0.00052054,120]
[358225852,1744858248002,-1916.21,0.00052054,120]
[358225854,1744858248013,-500.0,0.00052054,120]
[358225857,1744858248023,-760.84,0.00052054,8]
[358225859,1744858248034,-500.0,0.00052054,120]
[358225860,1744858248044,-500.0,0.00052054,120]
[358225863,1744858248054,-566.50820384,0.00052054,120]
[358225865,1744858248065,-151.0,0.00052054,120]
[358225867,1744858248074,-500.0,0.00052054,120]
[358225869,1744858248084,-500.0,0.00052054,120]
[358225871,1744858248094,-500.0,0.00052054,120]
[358225873,1744858248103,-500.0,0.00052054,120]
[358225875,1744858248113,-500.0,0.00052054,120]
[358225877,1744858248123,-151.0,0.00052054,120]
[358225879,1744858248133,-500.0,0.00052054,120]
[358225881,1744858248143,-500.0,0.00052054,120]
[358225883,1744858248152,-500.0,0.00052054,120]
[358225885,1744858248162,-1199.87,0.00052054,120]
[358225887,1744858248172,-500.0,0.00052054,120]
[358225889,1744858248182,-509.61,0.00052054,120]
[358225891,1744858248192,-500.0,0.00052054,120]
[358225893,1744858248202,-500.0,0.00052054,120]
[358225895,1744858248212,-151.709647,0.00052054,120]
[358225897,1744858248222,-668.08,0.00052054,120]
[358225899,1744858248232,-500.0,0.00052054,120]
[358225901,1744858248242,-500.0,0.00052054,120]
[358225903,1744858248252,-500.0,0.00052054,120]
[358225905,1744858248264,-1005.74,0.00052054,120]
[358225907,1744858248274,-500.0,0.00052054,120]
[358225909,1744858248284,-2003.14,0.00052054,120]
[358225911,1744858248294,-1480.35,0.00052054,120]
[358225913,1744858248304,-500.0,0.00052054,120]
[358225915,1744858248314,-500.0,0.00052054,120]
[358225917,1744858248324,-500.0,0.00052054,120]
[358225919,1744858248334,-2105.07,0.00052054,120]
[358225921,1744858248345,-525.38692825,0.00052054,120]
[358225923,1744858248355,-500.0,0.00052054,120]
[358225925,1744858248364,-500.0,0.00052054,120]
[358225927,1744858248374,-968.38,0.00052054,120]
[358225929,1744858248384,-500.0,0.00052054,120]
[358225931,1744858248394,-500.0,0.00052054,120]
[358225934,1744858248404,-526.50462011,0.00052054,120]
[358225936,1744858248414,-1698.64,0.00052054,120]
[358225938,1744858248428,-151.0,0.00052054,120]
[358225940,1744858248438,-500.0,0.00052054,120]
[358225942,1744858248448,-500.0,0.00052054,120]
[358225944,1744858248459,-500.0,0.00052054,120]
[358225946,1744858248469,-500.0,0.00052054,120]
[358225948,1744858248479,-500.0,0.00052054,120]
[358225950,1744858248489,-913.88,0.00052054,120]
[358225952,1744858248499,-605.39,0.00052054,120]
[358225954,1744858248510,-1809.14,0.00052054,120]
[358225956,1744858248520,-500.0,0.00052054,120]
[358225958,1744858248530,-500.0,0.00052054,120]
[358225960,1744858248540,-507.17356614,0.00052054,120]
[358225962,1744858248550,-151.0,0.00052054,120]
[358225963,1744858248560,-500.0,0.00052054,120]
[358225964,1744858248569,-594.91507051,0.00052054,30]
[358225965,1744858248579,-500.0,0.00052054,120]
[358225966,1744858248590,-500.0,0.00052054,120]
[358225967,1744858248599,-151.0,0.00052054,120]
[358225968,1744858248609,-500.0,0.00052054,120]
[358225969,1744858248619,-1186.29,0.00052054,120]
[358225970,1744858248629,-155.309382,0.00052054,120]
[358225971,1744858248639,-1699.47,0.00052054,120]
[358225972,1744858248649,-500.0,0.00052054,120]
[358225973,1744858248658,-500.0,0.00052054,120]
[358225974,1744858248669,-500.0,0.00052054,120]
[358225975,1744858248679,-151.0,0.00052054,120]
[358225976,1744858248690,-500.0,0.00052054,120]
[358225977,1744858248701,-500.0,0.00052054,120]
[358225978,1744858248711,-500.0,0.00052054,120]
[358225979,1744858248721,-500.0,0.00052054,120]
[358225980,1744858248731,-500.0,0.00052054,120]
[358225981,1744858248741,-151.0,0.00052054,120]
[358225982,1744858248751,-500.0,0.00052054,120]
[358225983,1744858248765,-500.0,0.00052054,120]
[358225984,1744858248775,-192.616011,0.00052054,120]
[358225986,1744858248785,-1000.0,0.00052054,120]
[358225988,1744858248797,-949.69,0.00052054,120]
[358225990,1744858248807,-500.0,0.00052054,120]
[358225992,1744858248817,-500.0,0.00052054,120]
[358225994,1744858248827,-1031.85,0.00052054,120]
[358225996,1744858248837,-500.0,0.00052054,120]
[358225998,1744858248847,-500.0,0.00052054,120]
[358226000,1744858248857,-500.0,0.00052054,120]
[358226002,1744858248867,-500.0,0.00052054,120]
[358226004,1744858248877,-2124.23,0.00052054,120]
[358226006,1744858248886,-614.64101228,0.00052054,90]
[358226008,1744858248897,-500.0,0.00052054,120]
[358226010,1744858248907,-500.0,0.00052054,120]
[358226012,1744858248917,-500.0,0.00052054,120]
[358226014,1744858248926,-223.298886,0.00052054,120]
[358226016,1744858248936,-500.0,0.00052054,120]
[358226018,1744858248946,-577.79268953,0.00052054,120]
[358226020,1744858248955,-500.0,0.00052054,120]
[358226022,1744858248965,-2000.32,0.00052054,120]
[358226024,1744858248974,-500.0,0.00052054,120]
[358226026,1744858248984,-500.0,0.00052054,120]
[358226028,1744858248994,-500.0,0.00052054,120]
[358226030,1744858249004,-154.726489,0.00052054,120]
[358226032,1744858249016,-500.0,0.00052054,120]
[358226034,1744858249025,-500.0,0.00052054,120]
[358226037,1744858249035,-500.0,0.00052054,120]
[358226039,1744858249045,-151.0,0.00052054,120]
[358226041,1744858249055,-500.0,0.00052054,30]
[358226043,1744858249065,-688.56,0.00052054,120]
[358226045,1744858249075,-1605.41,0.00052054,120]
[358226047,1744858249084,-500.0,0.00052054,120]
[358226049,1744858249095,-500.0,0.00052054,120]
[358226051,1744858249104,-151.0,0.00052054,120]
[358226053,1744858249114,-500.0,0.00052054,120]
[358226055,1744858249124,-500.0,0.00052054,120]
[358226057,1744858249134,-500.0,0.00052054,120]
[358226059,1744858249145,-500.0,0.00052054,120]
[358226061,1744858249155,-151.0,0.00052054,120]
[358226063,1744858249165,-2385.28,0.00052054,120]
[358226065,1744858249175,-624.24,0.00052054,120]
[358226067,1744858249185,-500.0,0.00052054,120]
[358226069,1744858249196,-1183.2,0.00052054,120]
[358226071,1744858249206,-573.72,0.00052054,120]
[358226073,1744858249216,-500.0,0.00052054,120]
[358226075,1744858249226,-500.0,0.00052054,120]
[358226077,1744858249236,-500.0,0.00052054,120]
[358226080,1744858249246,-768.61,0.00052054,120]
[358226082,1744858249260,-500.0,0.00052054,120]
[358226084,1744858249270,-151.0,0.00052054,120]
[358226086,1744858249281,-500.0,0.00052054,120]
[358226088,1744858249291,-549.79,0.00052054,120]
[358226090,1744858249302,-500.0,0.00052054,120]
[358226107,1744858249460,-500.0,0.00052054,120]
[358226109,1744858249470,-799.3,0.00052054,120]
[358226111,1744858249480,-500.0,0.00052054,120]